fUSD/lending_fUSD_20260318
["ID","MTS","AMOUNT","RATE_DAILY","PERIOD"]
[408539623,1773865842290,-500.0,0.00015973,2]
[408539624,1773865842299,-500.0,0.00015973,2]
[408539625,1773865842308,-500.0,0.00015973,2]
[408539626,1773865842318,-210.44909634,0.00015973,2]
[408539627,1773865842328,-500.0,0.00015973,2]
[408539628,1773865842337,-159.10669946,0.00015973,2]
[408539629,1773865842349,-500.0,0.00015973,2]
[408539630,1773865842359,-517.7204554,0.00015973,2]
[408539631,1773865842368,-500.0,0.00015973,2]
[408539632,1773865842377,-500.0,0.00015973,2]
[408539633,1773865842387,-164.40138988,0.00015973,2]
[408539634,1773865842396,-500.20355798,0.00015973,2]
[408539635,1773865842406,-500.0,0.00015973,2]
[408539636,1773865842415,-500.0,0.00015973,2]
[408539637,1773865842425,-500.0,0.00015973,2]
[408539638,1773865842434,-500.0,0.00015973,2]
[408539639,1773865842444,-502.73508484,0.00015973,2]
[408539640,1773865842457,-382.43871643,0.00015973,2]
[408539641,1773865842468,-500.0,0.00015973,2]
[408539642,1773865842477,-336.94661194,0.00015973,2]
[408539643,1773865842486,-500.0,0.00015973,2]
[408539644,1773865842496,-160.12298016,0.00015973,2]
[408539645,1773865842506,-210.47030904,0.00015973,2]
[408539646,1773865842516,-500.0,0.00015973,2]
[408539647,1773865842526,-500.0,0.00015973,2]
[408539648,1773865842536,-517.4992797,0.00015973,2]
[408539649,1773865842546,-500.0,0.00015973,2]
[408539650,1773865842556,-500.0,0.00015973,2]
[408539651,1773865842565,-500.0,0.00015973,2]
[408539652,1773865842575,-500.0,0.00015973,2]
[408539653,1773865842585,-514.55725178,0.00015973,2]
[408539654,1773865842594,-500.0,0.00015973,2]
[408539655,1773865842604,-500.0,0.00015973,2]
[408539656,1773865842614,-500.0,0.00015973,2]
[408539657,1773865842623,-500.0,0.00015973,2]
[408539658,1773865842633,-191.09594132,0.00015973,2]
[408539659,1773865842643,-500.0,0.00015973,2]
[408539660,1773865842652,-500.42157714,0.00015973,2]
[408539661,1773865842661,-500.0,0.00015973,2]
[408539662,1773865842671,-489.56124248,0.00015973,2]
[408539663,1773865842680,-500.0,0.00015973,2]
[408539664,1773865842690,-500.0,0.00015973,2]
[408539665,1773865842699,-166.41691617,0.00015973,2]
[408539666,1773865842710,-162.69740995,0.00015973,2]
[408539667,1773865842719,-500.0,0.00015973,2]
[408539668,1773865842729,-380.30178366,0.00015973,2]
[408539670,1773865842739,-163.39305656,0.00015973,2]
[408539673,1773865842749,-168.31736846,0.00015973,2]
[408539676,1773865842758,-500.0,0.00015973,2]
[408539679,1773865842767,-163.96638651,0.00015973,2]
[408539704,1773865842932,-500.0,0.00015973,2]
[408539706,1773865842942,-578.22,0.00015973,2]
[408539708,1773865842953,-515.376182,0.00015973,2]
[408539710,1773865842963,-515.376182,0.00015973,2]
[408539712,1773865842973,-515.376182,0.00015973,2]
[408539714,1773865842982,-515.376182,0.00015973,2]
[408539716,1773865842992,-151.0,0.00015985,2]
[408539717,1773865843001,-1520.0,0.00015985,2]
[408539719,1773865843011,-151.0,0.00015985,2]
[408539721,1773865843024,-160.0,0.00015985,2]
[408539722,1773865843033,-1520.0,0.00015985,2]
[408539723,1773865843043,-151.0,0.00015985,2]
[408539724,1773865843053,-160.0,0.00015985,2]
[408539725,1773865843062,-1520.0,0.00015985,2]
[408539726,1773865843071,-160.0,0.00015985,2]
[408539727,1773865843080,-1520.0,0.00015985,2]
[408539728,1773865843092,-151.0,0.00015985,2]
[408539729,1773865843101,-160.0,0.00015985,2]
[408539730,1773865843110,-1520.0,0.00015985,2]
[408539731,1773865843119,-151.0,0.00015985,2]
[408539732,1773865843128,-161.08997555,0.00015985,2]
[408539733,1773865843137,-151.0,0.00015985,2]
[408539734,1773865843147,-151.0,0.00015985,2]
[408539735,1773865843157,-151.0,0.00015985,2]
[408539736,1773865843166,-154.38251739,0.00015985,2]
[408539737,1773865843175,-1520.0,0.00015985,2]
[408539738,1773865843185,-1520.0,0.00015985,2]
[408539739,1773865843194,-1520.0,0.00015985,2]
[408539740,1773865843203,-1520.0,0.00015985,2]
[408539741,1773865843214,-1520.0,0.00015985,2]
[408539742,1773865843225,-1520.0,0.00015985,2]
[408539743,1773865843235,-1520.0,0.00015985,2]
[408539744,1773865843244,-1520.0,0.00015985,2]
[408539745,1773865843254,-1520.0,0.00015985,2]
[408539746,1773865843263,-1520.0,0.00015985,2]
[408539747,1773865843272,-1520.0,0.00015985,2]
[408539748,1773865843281,-1520.0,0.00015985,2]
[408539749,1773865843290,-1520.0,0.00015985,2]
[408539750,1773865843300,-1520.0,0.00015985,2]
[408539751,1773865843310,-1520.0,0.00015985,2]
[408539752,1773865843319,-1520.0,0.00015985,2]
[408539753,1773865843328,-1520.0,0.00015985,2]
[408539754,1773865843338,-1520.0,0.00015985,2]
[408539755,1773865843347,-1309.54716045,0.00015985,2]
[408539756,1773865843357,-152.72588312,0.00015985,2]
[408539757,1773865843366,-350.0,0.00015986,2]
[408539758,1773865843375,-416.60690353,0.0001599,2]
[408539759,1773865843385,-31738.20384014,0.00015999,7]
[408539760,1773865843394,-1153.73881168,0.00015999,5]
[408539761,1773865843404,-164.50003126,0.00015999,2]
[408539762,1773865843414,-200.0,0.00015999,2]
[408539763,1773865843424,-200.0,0.00015999,2]
[408539764,1773865843433,-1000.0,0.00015999,2]
[408539765,1773865843443,-13723.64861363,0.00015999,7]
[408539766,1773865843453,-500.0,0.00015999,2]
[408539767,1773865843464,-500.0,0.00015999,2]
[408539768,1773865843474,-500.0,0.00015999,2]
[408539769,1773865843483,-559.56880339,0.00015999,2]
[408539770,1773865843492,-500.0,0.00015999,2]
[408539771,1773865843501,-425.2699987,0.00015999,2]
[408539772,1773865843511,-500.0,0.00015999,2]
[408539773,1773865843520,-500.0,0.00015999,2]
[408539774,1773865843529,-500.0,0.00015999,2]
[408539775,1773865843538,-500.0,0.00015999,2]
[408539776,1773865843547,-500.0,0.00015999,2]
[408539777,1773865843557,-500.0,0.00015999,2]
[408539778,1773865843566,-500.0,0.00015999,2]
[408539779,1773865843576,-500.0,0.00015999,2]
[408539780,1773865843585,-500.0,0.00015999,2]
[408539781,1773865843594,-500.0,0.00015999,2]
[408539782,1773865843603,-500.0,0.00015999,2]
[408539783,1773865843612,-500.0,0.00015999,2]
[408539784,1773865843622,-500.0,0.00015999,2]
[408539785,1773865843631,-500.0,0.00015999,2]
[408539786,1773865843640,-591.08999128,0.00015999,2]
[408539787,1773865843649,-265.817338,0.00015999,2]
[408539788,1773865843658,-265.817338,0.00015999,2]
[408539789,1773865843667,-265.817338,0.00015999,2]
[408539790,1773865843677,-265.817338,0.00015999,2]
[408539791,1773865843686,-151.0,0.00015999,2]
[408539792,1773865843695,-68571.95359974,0.00016,2]
[408539793,1773865844120,-1307143.96865558,0.00016,2]
[408539794,1773865844461,-620.0,0.00015765,2]
[408539795,1773865844471,-16000.27,0.00016,2]
[408539796,1773865844482,-5093.3099097,0.00016,2]
[408539797,1773865844493,-253.0,0.00016,2]
[408539798,1773865844503,-761.0,0.00016,2]
[408539800,1773865845260,-979.16666667,0.00015738,2]
[408539801,1773865845270,-4591.28787301,0.00016,2]
[408539802,1773865845283,-3568.01656786,0.00016,2]
[408539803,1773865845514,-3828.02471361,0.00016,2]
[408539804,1773865845525,-260.40896,0.00016,2]
[408539805,1773865845552,-1414.44498939,0.00016,2]
[408539806,1773865845643,-2174.30000003,0.00016,2]
[408539807,1773865845654,-270.39079621,0.00016,2]
[408539813,1773866016195,150.93,0.000161,120]
[408539814,1773866204784,150.0,0.000161,120]
[408539815,1773866393846,150.0,0.000161,120]
[408539816,1773866582941,150.0,0.000161,120]
[408539817,1773866771696,150.0,0.000161,120]
[408539818,1773866960736,150.0,0.000161,120]
[408539822,1773867031501,-292.97700002,0.00012537,2]
[408539823,1773867031514,-207.02299998,0.00012537,2]
[408539824,1773867031524,-217.0,0.00013122,2]
[408539825,1773867031535,-447.80849134,0.00013122,2]
[408539826,1773867031547,-752.19150866,0.00013122,2]
[408539827,1773867031556,-300.0,0.00013122,2]
[408539828,1773867031566,-1130.18810178,0.00013123,2]
[408539829,1773867031582,-8673.61783922,0.00013123,2]
[408539830,1773867031591,-300.0,0.00013189,2]
[408539831,1773867031600,-173.74838975,0.00013258,2]
[408539832,1773867031610,-4287.48964323,0.00013326,2]
[408539833,1773867031619,-166.66,0.00013496,2]
[408539834,1773867031628,-500.0,0.00013496,2]
[408539835,1773867031637,-200.0,0.00013665,2]
[408539836,1773867031647,-3240.0,0.00013686,2]
[408539837,1773867031657,-166.66,0.0001378,2]
[408539839,1773867031666,-250.0,0.00013791,2]
[408539841,1773867031675,-181.29,0.00013793,2]
[408539843,1773867031684,-1236.04,0.00013939,2]
[408539844,1773867031694,-28178.3915,0.00013964,2]
[408539845,1773867031703,-51280.17208555,0.00014,2]
[408539846,1773867031715,-36396.82791445,0.00014,2]
[408539848,1773867031724,-150.0,0.00014063,2]
[408539850,1773867031733,-166.66,0.00014064,2]
[408539852,1773867031743,-14328.97,0.00014064,2]
[408539855,1773867031752,-14234.58093867,0.00014064,2]
[408539858,1773867031764,-400.0,0.00014064,2]
[408539861,1773867031775,-584.03326495,0.00014064,2]
[408539863,1773867031790,-294.40797712,0.00014064,2]
[408539864,1773867031801,-12073.97781926,0.00014064,2]
[408539865,1773867031811,-1600.0,0.00014082,2]
[408539866,1773867031821,-600.0,0.00014082,2]
[408539867,1773867031830,-202.48,0.00014109,2]
[408539868,1773867031839,-166.66,0.00014348,2]
[408539869,1773867031848,-1000.0,0.00014356,2]
[408539870,1773867031857,-1680.0,0.00014434,2]
[408539871,1773867031867,-5533.0,0.000145,3]
[408539872,1773867031876,-5973.86262035,0.00014532,2]
[408539873,1773867031884,-2065.35203622,0.00014568,2]
[408539874,1773867031894,-200.0,0.00014623,2]
[408539875,1773867031904,-177.53400092,0.00014632,2]
[408539876,1773867031913,-1276.69100156,0.00014632,2]
[408539877,1773867031925,-8408.46727034,0.00014632,2]
[408539878,1773867031940,-437.18897472,0.00014632,2]
[408539879,1773867037664,-500.0,0.00014632,2]
[408539880,1773867037720,-1256.40417357,0.00014632,2]
[408539881,1773867037732,-14253.93855842,0.00014632,2]
[408539886,1773867039967,-763.31364055,0.00014632,2]
[408539909,1773867042698,-2603.38133832,0.00014632,2]
[408539910,1773867042707,-166.66,0.00014632,2]
[408539911,1773867042716,-320.94490742,0.00014673,2]
[408539912,1773867042726,-5973.86262026,0.00014684,2]
[408539913,1773867042735,-1500.0,0.00014686,2]
[408539914,1773867042744,-725.05329548,0.000147,2]
[408539920,1773867045830,-1958.83995467,0.000147,2]
[408539921,1773867045841,-1647.77996298,0.000147,2]
[408539924,1773867153019,150.0,0.000161,120]
[408539943,1773867340700,150.0,0.000161,120]
[408539944,1773867529231,150.0,0.000161,120]
[408539945,1773867716040,150.0,0.000161,120]
[408539946,1773867716900,453.61759098,0.00030136,120]
[408539947,1773867902398,260.21,0.000161,120]
[408539948,1773868162127,-222.99930352,0.000121,2]
[408539955,1773868231702,-638.34053726,0.000128,2]
[408539956,1773868231714,-4510.37246832,0.000128,2]
[408539958,1773868231724,-3592.61,0.00012896,2]
[408539959,1773868231733,-174.82758681,0.00012951,2]
[408539960,1773868231742,-150.0,0.00013051,2]
[408539961,1773868231751,-2000.0,0.00013135,2]
[408539962,1773868231761,-218.39,0.00013285,2]
[408539963,1773868231770,-165.98,0.00013285,2]
[408539964,1773868231779,-830.45894101,0.00013312,2]
[408539965,1773868231791,-369.54105899,0.00013312,2]
[408539966,1773868231801,-1720.71997737,0.00013313,2]
[408539967,1773868231811,-174.82758679,0.00013404,2]
[408539968,1773868231820,-286.7866629,0.00013432,2]
[408539969,1773868231830,-159.1,0.00013548,2]
[408539970,1773868231839,-286.7866629,0.00013565,2]
[408539971,1773868231848,-300.0,0.00013598,2]
[408539972,1773868231858,-300.0,0.00013599,2]
[408539973,1773868231867,-1500.0,0.000136,4]
[408539974,1773868231876,-286.7866629,0.00013698,2]
[408539975,1773868231885,-695.97,0.00013699,2]
[408539976,1773868231895,-200.0,0.00013699,2]
[408539977,1773868231904,-3100.0,0.000137,5]
[408539979,1773868231913,-774.35062297,0.00013764,2]
[408539981,1773868231922,-2244.03365239,0.000138,2]
[408539983,1773868231932,-4600.0,0.000138,5]
[408539985,1773868231941,-174.82758679,0.00013856,2]
[408539987,1773868231950,-7364.4350589,0.00013863,2]
[408539989,1773868231959,-643.48426533,0.00013864,2]
[408539991,1773868231969,-150.0,0.00013867,2]
[408539993,1773868231979,-1041.34035957,0.00013869,2]
[408539995,1773868231989,-1041.34035957,0.00013873,2]
[408539998,1773868231999,-6200.0,0.000139,5]
[408540000,1773868232009,-1000.0,0.00013949,2]
[408540002,1773868232019,-823.89516258,0.00013949,2]
[408540004,1773868232029,-26877.0594251,0.0001395,2]
[408540007,1773868232039,-745.04680978,0.00013954,2]
[408540008,1773868232048,-13204.4,0.00013954,2]
[408540009,1773868232056,-13204.4,0.00013954,2]
[408540010,1773868232065,-500.0,0.00013956,2]
[408540011,1773868232075,-500.0,0.00013956,2]
[408540012,1773868232084,-500.0,0.00013956,2]
[408540013,1773868232092,-500.0,0.00013956,2]
[408540014,1773868232101,-500.0,0.00013956,2]
[408540015,1773868232110,-500.0,0.00013956,2]
[408540016,1773868232119,-416.28686454,0.00013956,2]
[408540017,1773868232128,-151.0,0.00013956,2]
[408540018,1773868232138,-151.0,0.00013956,2]
[408540019,1773868232147,-151.0,0.00013956,2]
[408540020,1773868232156,-151.0,0.00013956,2]
[408540021,1773868232165,-200.0,0.00013956,2]
[408540022,1773868232174,-500.0,0.00013956,2]
[408540023,1773868232183,-151.0,0.00013956,2]
[408540024,1773868232193,-500.0,0.00013956,2]
[408540025,1773868232202,-151.0,0.00013956,2]
[408540026,1773868232211,-529.17570437,0.00013956,2]
[408540027,1773868232221,-151.0,0.00013956,2]
[408540028,1773868232231,-151.0,0.00013956,2]
[408540029,1773868232240,-151.0,0.00013956,2]
[408540030,1773868232249,-151.0,0.00013956,2]
[408540031,1773868232258,-151.0,0.00013956,2]
[408540032,1773868232267,-151.0,0.00013956,2]
[408540033,1773868232276,-154.4363437,0.00013956,2]
[408540034,1773868232286,-1153.73881168,0.00013963,5]
[408540035,1773868232295,-500.0,0.00013963,2]
[408540036,1773868232304,-500.0,0.00013963,2]
[408540037,1773868232314,-452.69026892,0.00013963,2]
[408540038,1773868232323,-500.0,0.00013963,2]
[408540039,1773868232332,-308.46140861,0.00013963,2]
[408540040,1773868232341,-574.55,0.00013963,2]
[408540041,1773868232351,-500.0,0.00013963,2]
[408540042,1773868232360,-500.0,0.00013963,2]
[408540043,1773868232369,-500.0,0.00013963,2]
[408540044,1773868232378,-500.0,0.00013963,2]
[408540045,1773868232387,-500.0,0.00013963,2]
[408540046,1773868232396,-500.0,0.00013963,2]
[408540047,1773868232405,-500.0,0.00013963,2]
[408540048,1773868232415,-500.0,0.00013963,2]
[408540049,1773868232425,-500.0,0.00013963,2]
[408540050,1773868232434,-582.94448821,0.00013963,2]
[408540051,1773868232443,-500.0,0.00013963,2]
[408540052,1773868232452,-500.0,0.00013963,2]
[408540053,1773868232462,-500.0,0.00013963,2]
[408540054,1773868232471,-500.0,0.00013963,2]
[408540055,1773868232481,-500.0,0.00013963,2]
[408540056,1773868232491,-425.2699987,0.00013963,2]
[408540057,1773868232500,-500.0,0.00013963,2]
[408540058,1773868232509,-500.0,0.00013963,2]
[408540059,1773868232519,-500.0,0.00013963,2]
[408540060,1773868232528,-500.0,0.00013963,2]
[408540061,1773868232537,-500.0,0.00013963,2]
[408540062,1773868232546,-504.81663731,0.00013963,2]
[408540063,1773868232556,-514.11832696,0.00013963,2]
[408540064,1773868232565,-500.0,0.00013963,2]
[408540065,1773868232575,-500.0,0.00013963,2]
[408540066,1773868232584,-500.0,0.00013963,5]
[408540067,1773868232593,-500.0,0.00013963,2]
[408540068,1773868232603,-368.44527553,0.00013963,2]
[408540069,1773868232612,-500.0,0.00013963,2]
[408540070,1773868232621,-306.9393686,0.00013963,2]
[408540071,1773868232631,-736.53362377,0.00013963,2]
[408540072,1773868232640,-736.53362377,0.00013963,2]
[408540073,1773868232653,-736.53362377,0.00013963,2]
[408540074,1773868232663,-736.53362377,0.00013963,2]
[408540075,1773868232672,-736.53362377,0.00013963,2]
[408540076,1773868232682,-736.53362377,0.00013963,2]
[408540077,1773868232692,-736.53362377,0.00013963,2]
[408540078,1773868232701,-736.53362377,0.00013963,2]
[408540079,1773868232711,-736.53362377,0.00013963,2]
[408540080,1773868232720,-736.53362377,0.00013963,2]
[408540081,1773868232730,-736.53362377,0.00013963,2]
[408540082,1773868232739,-736.53362377,0.00013963,2]
[408540083,1773868232748,-736.53362377,0.00013963,2]
[408540084,1773868232758,-736.53362377,0.00013963,2]
[408540085,1773868232767,-736.53362377,0.00013963,2]
[408540086,1773868232777,-736.53362377,0.00013963,2]
[408540087,1773868232786,-736.53362377,0.00013963,2]
[408540088,1773868232796,-736.53362377,0.00013963,2]
[408540089,1773868232805,-736.53362377,0.00013963,2]
[408540090,1773868232814,-736.53362377,0.00013963,2]
[408540091,1773868232823,-736.53362377,0.00013963,2]
[408540092,1773868232833,-736.53362377,0.00013963,2]
[408540093,1773868232842,-736.53362377,0.00013963,2]
[408540094,1773868232851,-736.53362377,0.00013963,2]
[408540095,1773868232861,-736.53362377,0.00013963,2]
[408540096,1773868232870,-736.53362377,0.00013963,2]
[408540097,1773868232879,-736.53362377,0.00013963,2]
[408540098,1773868232888,-736.53362377,0.00013963,2]
[408540099,1773868232898,-736.53362377,0.00013963,2]
[408540100,1773868232907,-736.53362377,0.00013963,2]
[408540101,1773868232917,-736.53362377,0.00013963,2]
[408540102,1773868232926,-736.53362377,0.00013963,2]
[408540103,1773868232937,-736.53362377,0.00013963,2]
[408540104,1773868232947,-736.53362377,0.00013963,2]
[408540105,1773868232957,-736.53362377,0.00013963,2]
[408540106,1773868232967,-736.53362377,0.00013963,2]
[408540107,1773868232976,-736.53362377,0.00013963,2]
[408540108,1773868232986,-736.53362377,0.00013963,2]
[408540109,1773868232995,-736.53362377,0.00013963,2]
[408540110,1773868233007,-736.53362377,0.00013963,2]
[408540111,1773868233028,-736.53362377,0.00013963,2]
[408540112,1773868233048,-736.53362377,0.00013963,2]
[408540113,1773868233071,-736.53362377,0.00013963,2]
[408540114,1773868233094,-736.53362377,0.00013963,2]
[408540115,1773868233119,-736.53362377,0.00013963,2]
[408540116,1773868233141,-736.53362377,0.00013963,2]
[408540117,1773868233162,-736.53362377,0.00013963,2]
[408540118,1773868233185,-736.53362377,0.00013963,2]
[408540119,1773868233207,-736.53362377,0.00013963,2]
[408540120,1773868233231,-736.53362377,0.00013963,2]
[408540121,1773868233253,-244.46515672,0.00013963,2]
[408540122,1773868233269,-734.54299236,0.00013963,2]
[408540123,1773868233278,-734.54299236,0.00013963,2]
[408540124,1773868233288,-677.55405677,0.00013963,2]
[408540125,1773868233480,-56.98893559,0.00013963,2]
[408540126,1773868233489,-734.54299236,0.00013963,2]
[408540127,1773868233498,-734.54299236,0.00013963,2]
[408540128,1773868233508,-734.54299236,0.00013963,2]
[408540129,1773868233517,-734.54299236,0.00013963,2]
[408540130,1773868233526,-734.54299236,0.00013963,2]
[408540131,1773868233535,-734.54299236,0.00013963,2]
[408540132,1773868233544,-734.54299236,0.00013963,2]
[408540133,1773868233553,-734.54299236,0.00013963,2]
[408540134,1773868233562,-734.54299236,0.00013963,2]
[408540135,1773868233571,-734.54299236,0.00013963,2]
[408540136,1773868233580,-734.54299236,0.00013963,2]
[408540137,1773868233590,-734.54299236,0.00013963,2]
[408540138,1773868233599,-734.54299236,0.00013963,2]
[408540139,1773868233608,-734.54299236,0.00013963,2]
[408540140,1773868233618,-734.54299236,0.00013963,2]
[408540141,1773868233627,-734.54299236,0.00013963,2]
[408540142,1773868233637,-734.54299236,0.00013963,2]
[408540143,1773868233648,-734.54299236,0.00013963,2]
[408540144,1773868233658,-734.54299236,0.00013963,2]
[408540145,1773868233667,-734.54299236,0.00013963,2]
[408540146,1773868233676,-734.54299236,0.00013963,2]
[408540147,1773868233685,-734.54299236,0.00013963,2]
[408540148,1773868233694,-734.54299236,0.00013963,2]
[408540149,1773868233703,-734.54299236,0.00013963,2]
[408540150,1773868233712,-734.54299236,0.00013963,2]
[408540151,1773868233724,-734.54299236,0.00013963,2]
[408540152,1773868233733,-734.54299236,0.00013963,2]
[408540153,1773868233741,-734.54299236,0.00013963,2]
[408540154,1773868233751,-500.0,0.00013963,2]
[408540155,1773868233760,-734.54299236,0.00013963,2]
[408540156,1773868233769,-396.95057917,0.00013963,2]
[408540157,1773868233778,-734.54299236,0.00013963,2]
[408540158,1773868233787,-161.49352711,0.00013963,2]
[408540159,1773868233796,-500.0,0.00013963,2]
[408540160,1773868233805,-408.67334874,0.00013963,2]
[408540161,1773868233814,-500.0,0.00013963,2]
[408540162,1773868233823,-276.8167788,0.00013963,2]
[408540163,1773868233832,-500.0,0.00013963,2]
[408540164,1773868233840,-500.0,0.00013963,2]
[408540165,1773868233850,-500.0,0.00013963,2]
[408540166,1773868233859,-431.65316096,0.00013963,2]
[408540167,1773868233867,-738.62378677,0.00013963,2]
[408540168,1773868233876,-738.62378677,0.00013963,2]
[408540169,1773868233885,-500.0,0.00013963,2]
[408540170,1773868233895,-500.0,0.00013963,2]
[408540171,1773868233903,-738.62378677,0.00013963,2]
[408540172,1773868233912,-500.0,0.00013963,2]
[408540173,1773868233921,-738.62378677,0.00013963,2]
[408540174,1773868233930,-500.0,0.00013963,2]
[408540175,1773868233939,-449.37976169,0.00013963,2]
[408540176,1773868233949,-500.0,0.00013963,2]
[408540177,1773868233958,-500.0,0.00013963,2]
[408540178,1773868233967,-500.0,0.00013963,2]
[408540179,1773868233976,-500.0,0.00013963,2]
[408540180,1773868233985,-207.60435651,0.00013963,2]
[408540181,1773868233994,-738.62378676,0.00013963,2]
[408540182,1773868234003,-6208.17412005,0.00013964,2]
[408540183,1773868234015,-13971.41543881,0.00013964,2]
[408540184,1773868234026,-29438.32216778,0.00013964,2]
[408540185,1773868234051,-756.64639387,0.00013964,2]
[408540186,1773868234062,-1205.79627524,0.00013964,2]
[408540187,1773868234073,-1337.70986208,0.00013964,2]
[408540188,1773868234084,-2077.44,0.00013964,2]
[408540189,1773868234096,-797.59445327,0.00013964,2]
[408540190,1773868234107,-1595.69867352,0.00013964,2]
[408540191,1773868234118,-2004.84629441,0.00013964,2]
[408540192,1773868234129,-1249.39039257,0.00013964,2]
[408540193,1773868234140,-1027.91709861,0.00013964,2]
[408540194,1773868234151,-500.0,0.00013964,2]
[408540195,1773868234163,-819.57845253,0.00013964,2]
[408540196,1773868234174,-445.76873125,0.00013964,2]
[408540197,1773868237851,-1626.87520625,0.00013964,2]
[408540239,1773868240912,-1010630.34993976,0.00013964,2]
[408540240,1773868240921,-503.44627183,0.00013973,2]
[408540241,1773868240930,-500.0,0.00013973,2]
[408540242,1773868240939,-451.10107923,0.00014,2]
[408540243,1773868240947,-1700.0,0.00014082,2]
[408540244,1773868240956,-700.0,0.00014082,2]
[408540245,1773868240966,-7364.43505888,0.00014089,2]
[408540246,1773868240981,-91584.2004445,0.000141,2]
[408540247,1773868240994,-9317.5787579,0.000141,2]
[408540248,1773868241004,-105027.0099936,0.000141,2]
[408540249,1773868241014,-8135.832886,0.000141,2]
[408540250,1773868241024,-1014.4177993,0.000141,2]
[408540251,1773868241034,-1957.1892747,0.00014103,2]
[408540252,1773868241044,-181.0,0.00014104,2]
[408540253,1773868241053,-643.4842653,0.00014155,2]
[408540254,1773868241063,-181.0,0.00014188,2]
[408540255,1773868241072,-500.0,0.00014237,5]
[408540256,1773868241083,-7364.43505888,0.00014316,2]
[408540257,1773868241092,-1100.0,0.00014356,2]
[408540258,1773868241102,-695.97,0.00014384,2]
[408540259,1773868241111,-168.0,0.000144,2]
[408540260,1773868241121,-643.4842653,0.00014446,2]
[408540261,1773868241131,-341.11224002,0.00014504,2]
[408540262,1773868241140,-168.0,0.00014504,2]
[408540263,1773868241150,-500.0,0.00014511,5]
[408540264,1773868241159,-1000.0,0.00014521,2]
[408540265,1773868241168,-16565.1506,0.00014532,2]
[408540266,1773868241178,-5834.00397901,0.00014533,2]
[408540267,1773868241188,-422.91193653,0.00014533,2]
[408540268,1773868241198,-7364.43505888,0.00014542,2]
[408540269,1773868241207,-47743.06976617,0.0001456,2]
[408540270,1773868241216,-168.0,0.000146,2]
[408540271,1773868241226,-150.0,0.00014633,2]
[408540272,1773868241235,-500.0,0.00014633,2]
[408540273,1773868241245,-500.0,0.00014633,2]
[408540274,1773868241255,-500.0,0.00014633,2]
[408540275,1773868241264,-500.0,0.00014633,2]
[408540276,1773868241273,-500.0,0.00014633,2]
[408540277,1773868241283,-597.01723179,0.00014633,2]
[408540278,1773868241292,-731.0,0.00014633,2]
[408540279,1773868241302,-500.0,0.00014633,2]
[408540280,1773868241311,-731.0,0.00014633,2]
[408540281,1773868241321,-500.0,0.00014633,2]
[408540282,1773868241330,-731.0,0.00014633,2]
[408540283,1773868241339,-500.0,0.00014633,2]
[408540284,1773868241349,-731.0,0.00014633,2]
[408540285,1773868241358,-500.0,0.00014633,2]
[408540286,1773868241367,-731.0,0.00014633,2]
[408540287,1773868241377,-622.75686492,0.00014633,2]
[408540288,1773868241386,-731.0,0.00014633,2]
[408540289,1773868241396,-731.0,0.00014633,2]
[408540290,1773868241405,-731.0,0.00014633,2]
[408540291,1773868241414,-731.0,0.00014633,2]
[408540292,1773868241424,-731.0,0.00014633,2]
[408540293,1773868241433,-731.0,0.00014633,2]
[408540294,1773868241443,-731.0,0.00014633,2]
[408540295,1773868241452,-731.0,0.00014633,2]
[408540296,1773868241462,-731.0,0.00014633,2]
[408540297,1773868241471,-731.0,0.00014633,2]
[408540298,1773868241481,-731.0,0.00014633,2]